[Event "10th LCC FIDE Open 2018"]
[Site "London"]
[Date "2018.12.15"]
[Round "8"]
[White "Lim, Zhuo Ren"]
[Black "Penna, Tommaso"]
[Result "1-0"]
[ECO "D23"]
[WhiteElo "2184"]
[BlackElo "1963"]
[Annotator "NA"]
[PlyCount "113"]
[EventDate "2018.12.09"]
[EventType "swiss"]
[EventCountry "ENG"]
[SourceTitle "playchess.com"]
[Source "ChessBase"]
[SourceQuality "1"]
[TimeControl "40/5400+30:1800+30"]

1. Nf3 {[%emt 0:19:53]} d5 {[%emt 0:00:41]} 2. c4 {[%emt 0:00:00]} c6 {[%emt 0:00:26]} 3. d4 {[%emt 0:00:00]} Nf6 {[%emt 0:00:07]} 4. Qc2 {[%emt 0:00:00]} dxc4 {[%emt 0:02:59]} 5. Qxc4 {[%emt 0:00:00]} Bf5 {[%emt 0:00:17]} 6. g3 {[%emt 0:00:03]} e6 {[%emt 0:00:39]} 7. Bg2 {[%emt 0:00:07]} Be7 {[%emt 0:01:04]} 8. O-O {[%emt 0:00:10]} O-O {[%emt 0:02:59]} 9. e3 {[%emt 0:00:09]} Nbd7 {[%emt 0:00:29]} 10. Nc3 {[%emt 0:00:20]} h6 {[%emt 0:10:47]} 11. Qe2 {[%emt 0:00:13]} Bh7 {[%emt 0:01:35]} 12. e4 {[%emt 0:00:36]} Bb4 {[%emt 0:01:00]} 13. Ne5 {[%emt 0:01:37]} Nxe5 {[%emt 0:05:39]} 14. dxe5 {[%emt 0:01:14]} Nd7 {[%emt 0:00:05]} 15. Rd1 {[%emt 0:00:35]} Qc7 {[%emt 0:00:51]} 16. f4 {[%emt 0:00:19]} Rad8 {[%emt 0:01:21]} 17. Be3 {[%emt 0:00:23]} Nb6 {[%emt 0:06:47]} 18. Rac1 {[%emt 0:01:14]} Rxd1+ {[%emt 0:00:22]} 19. Rxd1 {[%emt 0:00:39]} Rd8 {[%emt 0:00:51]} 20. Rd3 {[%emt 0:00:46]} Rxd3 {[%emt 0:09:09]} 21. Qxd3 {[%emt 0:00:03]} Nd5 {[%emt 0:00:12]} 22. Bd2 {[%emt 0:01:51]} Nxc3 {[%emt 0:02:22]} 23. bxc3 {[%emt 0:04:26]} Bc5+ {[%emt 0:02:08]} 24. Kf1 {[%emt 0:00:06]} b5 {[%emt 0:04:43]} 25. Be3 {[%emt 0:03:49]} Bxe3 {[%emt 0:03:06]} 26. Qxe3 {[%emt 0:00:03]} Qd7 {[%emt 0:00:09]} 27. Ke2 {[%emt 0:03:43]} Kf8 {[%emt 0:05:12]} 28. Qc5+ {[%emt 0:07:12]} Ke8 {[%emt 0:00:25]} 29. Qd6 {[%emt 0:03:12]} f6 {[%emt 0:06:54]} 30. Qb8+ {[%emt 0:10:13]} Kf7 {[%emt 0:02:24]} 31. Bf3 {[%emt 0:04:33]} fxe5 {[%emt 0:09:15]} 32. Qxe5 {[%emt 0:00:13]} Qe7 {[%emt 0:04:28]} 33. h4 {[%emt 0:02:28]} c5 {[%emt 0:03:05]} 34. h5 {[%emt 0:00:58]} b4 {[%emt 0:00:48]} 35. cxb4 {[%emt 0:02:58]} cxb4 {[%emt 0:00:06]} 36. Ke3 {[%emt 0:00:18]} Qb7 {[%emt 0:02:08]} 37. Bd1 {[%emt 0:00:42]} Qc6 {[%emt 0:02:40]} 38. Bb3 {[%emt 0:01:11]} Qc3+ {[%emt 0:07:27]} 39. Qxc3 {[%emt 0:00:11]} bxc3 {[%emt 0:00:03]} 40. Kd4 {[%emt 0:01:01]} Kf6 {[%emt 0:01:01]} 41. e5+ {[%emt 0:31:37]} Ke7 {[%emt 0:32:26]} 42. Kxc3 {[%emt 0:00:08]} Bf5 {[%emt 0:00:27]} 43. Bd1 {[%emt 0:00:12]} Kd7 {[%emt 0:01:17]} 44. Kd4 {[%emt 0:02:04]} Kc6 {[%emt 0:00:00]} 45. Be2 {[%emt 0:00:00]} Bh3 {[%emt 0:00:00]} 46. g4 {[%emt 0:00:00]} Kb6 {[%emt 0:00:00]} 47. Bf3 {[%emt 0:00:00]} Bf1 {[%emt 0:00:00]} 48. f5 {[%emt 0:00:00]} exf5 {[%emt 0:00:00]} 49. gxf5 {[%emt 0:00:00]} Bb5 {[%emt 0:00:00]} 50. f6 {[%emt 0:00:00]} gxf6 {[%emt 0:00:00]} 51. exf6 {[%emt 0:00:00]} Be8 {[%emt 0:00:00]} 52. Kd5 {[%emt 0:00:00]} Bf7+ {[%emt 0:00:00]} 53. Kd6 {[%emt 0:00:00]} Kb5 {[%emt 0:00:00]} 54. Bd1 {[%emt 0:00:00]} Bxa2 {[%emt 0:00:00]} 55. Ke7 {[%emt 0:00:00]} Kc6 {[%emt 0:00:00]} 56. Bg4 {[%emt 0:00:00]} Bg8 {[%emt 0:00:00]} 57. Be6 {[%emt 0:00:00] Kd5 [%emt 00:00:18]} 1-0

[Event "10th LCC FIDE Open 2018"]
[Site "London"]
[Date "2018.12.15"]
[Round "8"]
[White "Keetman, Maaike"]
[Black "Derakhshani, Borna"]
[Result "0-1"]
[ECO "B15"]
[WhiteElo "2173"]
[BlackElo "2325"]
[Annotator "NA"]
[PlyCount "112"]
[EventDate "2018.12.09"]
[EventType "swiss"]
[EventCountry "ENG"]
[SourceTitle "playchess.com"]
[Source "ChessBase"]
[SourceQuality "1"]
[TimeControl "40/5400+30:1800+30"]

1. e4 {[%emt 0:01:31]} c6 {[%emt 0:01:19]} 2. d4 {[%emt 0:00:16]} d5 {[%emt 0:00:41]} 3. Nd2 {[%emt 0:00:12]} g6 {[%emt 0:03:12]} 4. h3 {[%emt 0:01:25]} Bg7 {[%emt 0:00:23]} 5. Ngf3 {[%emt 0:00:28]} Nd7 {[%emt 0:03:01]} 6. c3 {[%emt 0:03:50]} dxe4 {[%emt 0:01:47]} 7. Nxe4 {[%emt 0:00:18]} Ngf6 {[%emt 0:00:05]} 8. Nxf6+ {[%emt 0:01:59]} Nxf6 {[%emt 0:00:06]} 9. Bd3 {[%emt 0:00:28]} O-O {[%emt 0:00:54]} 10. O-O {[%emt 0:00:33]} Qc7 {[%emt 0:01:01]} 11. Re1 {[%emt 0:03:16]} b6 {[%emt 0:04:22]} 12. Ne5 {[%emt 0:08:51]} Bb7 {[%emt 0:02:41]} 13. Bf4 {[%emt 0:03:08]} Qc8 {[%emt 0:02:55]} 14. Qb3 {[%emt 0:04:56]} Nd5 {[%emt 0:02:31]} 15. Bg3 {[%emt 0:01:42]} a5 {[%emt 0:03:33]} 16. c4 {[%emt 0:08:00]} Nb4 {[%emt 0:00:54]} 17. Be4 {[%emt 0:10:12]} c5 {[%emt 0:04:50]} 18. Bxb7 {[%emt 0:13:18]} Qxb7 {[%emt 0:00:05]} 19. a3 {[%emt 0:00:11]} a4 {[%emt 0:01:25]} 20. Qd1 {[%emt 0:00:18]} Nc6 {[%emt 0:10:07]} 21. Qf3 {[%emt 0:03:08]} Bxe5 {[%emt 0:07:35]} 22. Bxe5 {[%emt 0:01:12]} f6 {[%emt 0:00:40]} 23. Bf4 {[%emt 0:02:42]} cxd4 {[%emt 0:00:56]} 24. Re6 {[%emt 0:01:25]} Nd8 {[%emt 0:12:41]} 25. Qxb7 {[%emt 0:02:29]} Nxb7 {[%emt 0:00:04]} 26. Rxe7 {[%emt 0:00:56]} Na5 {[%emt 0:00:10]} 27. Rd1 {[%emt 0:01:21]} Rac8 {[%emt 0:09:14]} 28. Bc7 {[%emt 0:03:35]} Rf7 {[%emt 0:04:18]} 29. Rxf7 {[%emt 0:01:19]} Kxf7 {[%emt 0:00:01]} 30. Bxb6 {[%emt 0:00:17]} Nxc4 {[%emt 0:00:04]} 31. Ba7 {[%emt 0:05:01]} Nxb2 {[%emt 0:00:44]} 32. Rxd4 {[%emt 0:00:31]} Rc3 {[%emt 0:08:27]} 33. Rb4 {[%emt 0:07:55]} Rb3 {[%emt 0:07:30]} 34. Bd4 {[%emt 0:02:35]} Rxb4 {[%emt 0:00:19]} 35. axb4 {[%emt 0:00:01]} a3 {[%emt 0:00:58]} 36. b5 {[%emt 0:00:23]} Ke6 {[%emt 0:02:16]} 37. b6 {[%emt 0:00:09]} Kd7 {[%emt 0:00:35]} 38. Kf1 {[%emt 0:02:19]} f5 {[%emt 0:00:46]} 39. Ke2 {[%emt 0:00:18]} Kc6 {[%emt 0:00:19]} 40. Kd2 {[%emt 0:00:40]} Nc4+ {[%emt 0:00:27]} 41. Kc3 {[%emt 0:30:31]} Nxb6 {[%emt 0:30:15]} 42. Kb3 {[%emt 0:00:17]} Nd5 {[%emt 0:01:21]} 43. Be5 {[%emt 0:01:17]} Kc5 {[%emt 0:00:20]} 44. Kxa3 {[%emt 0:00:00]} Kc4 {[%emt 0:00:00]} 45. Ka4 {[%emt 0:00:00]} Nb4 {[%emt 0:16:00]} 46. Bc7 {[%emt 0:00:00]} Nd3 {[%emt 0:00:00]} 47. f4 {[%emt 0:00:00]} Kd4 {[%emt 0:00:00]} 48. Kb5 {[%emt 0:00:00]} Ke4 {[%emt 0:00:00]} 49. g3 {[%emt 0:00:00]} Kf3 {[%emt 0:00:00]} 50. Kc4 {[%emt 0:00:00]} Nf2 {[%emt 0:00:00]} 51. Kd5 {[%emt 0:00:00]} Nxh3 {[%emt 0:00:00]} 52. Ke6 {[%emt 0:00:00]} Kxg3 {[%emt 0:00:00]} 53. Kf6 {[%emt 0:00:00]} Kg4 {[%emt 0:00:00]} 54. Kg7 {[%emt 0:00:08]} Nxf4 {[%emt 0:00:00]} 55. Kxh7 {[%emt 0:00:07]} g5 {[%emt 0:00:00]} 56. Kh6 {[%emt 0:01:52]} Nh3 {[%emt 0:00:00]} 0-1

[Event "10th LCC FIDE Open 2018"]
[Site "London"]
[Date "2018.12.15"]
[Round "8"]
[White "Eames, Robert S"]
[Black "Kueppers, Timo"]
[Result "0-1"]
[ECO "B94"]
[WhiteElo "2167"]
[BlackElo "2320"]
[Annotator "NA"]
[PlyCount "82"]
[EventDate "2018.12.09"]
[EventType "swiss"]
[EventCountry "ENG"]
[SourceTitle "playchess.com"]
[Source "ChessBase"]
[SourceQuality "1"]
[TimeControl "40/5400+30:1800+30"]

1. e4 {[%emt 0:15:45]} c5 {[%emt 0:00:00]} 2. Nf3 {[%emt 0:00:12]} d6 {[%emt 0:00:00]} 3. d4 {[%emt 0:00:23]} cxd4 {[%emt 0:00:01]} 4. Nxd4 {[%emt 0:00:07]} Nf6 {[%emt 0:00:03]} 5. Nc3 {[%emt 0:00:12]} a6 {[%emt 0:00:03]} 6. Bg5 {[%emt 0:01:06]} Nbd7 {[%emt 0:00:05]} 7. Qe2 {[%emt 0:00:15]} h6 {[%emt 0:00:06]} 8. Bh4 {[%emt 0:02:40]} g6 {[%emt 0:00:04]} 9. O-O-O {[%emt 0:03:29]} e5 {[%emt 0:00:28]} 10. Nb3 {[%emt 0:01:55]} Be7 {[%emt 0:05:42]} 11. f3 {[%emt 0:02:27]} b5 {[%emt 0:03:25]} 12. Bf2 {[%emt 0:03:27]} Bb7 {[%emt 0:01:13]} 13. a3 {[%emt 0:01:52]} Kf8 {[%emt 0:03:53]} 14. Kb1 {[%emt 0:03:03]} Kg7 {[%emt 0:00:14]} 15. g4 {[%emt 0:00:18]} Rc8 {[%emt 0:09:27]} 16. Qe3 {[%emt 0:02:33]} Qc7 {[%emt 0:03:28]} 17. h4 {[%emt 0:05:15]} d5 {[%emt 0:16:47]} 18. exd5 {[%emt 0:03:18]} b4 {[%emt 0:02:01]} 19. axb4 {[%emt 0:00:59]} Bxb4 {[%emt 0:00:25]} 20. d6 {[%emt 0:03:26]} Qc6 {[%emt 0:04:24]} 21. Rh3 {[%emt 0:09:42]} Bxc3 {[%emt 0:12:40]} 22. Qxc3 {[%emt 0:00:30]} Qxc3 {[%emt 0:00:37]} 23. bxc3 {[%emt 0:00:04]} Rxc3 {[%emt 0:01:14]} 24. Bd3 {[%emt 0:01:18]} Rc6 {[%emt 0:08:16]} 25. Be2 {[%emt 0:07:17]} Rc3 {[%emt 0:04:35]} 26. Bd3 {[%emt 0:08:46]} Nd5 {[%emt 0:07:37]} 27. Be1 {[%emt 0:03:27]} Rc6 {[%emt 0:02:01]} 28. Be4 {[%emt 0:01:05]} Rxd6 {[%emt 0:01:12]} 29. c4 {[%emt 0:04:27]} Nc3+ {[%emt 0:00:45]} 30. Bxc3 {[%emt 0:00:06]} Bxe4+ {[%emt 0:02:16]} 31. Kc1 {[%emt 0:00:17]} Rxd1+ {[%emt 0:00:10]} 32. Kxd1 {[%emt 0:00:06]} Bd3 {[%emt 0:01:26]} 33. Nd2 {[%emt 0:06:20]} Rc8 {[%emt 0:00:24]} 34. f4 {[%emt 0:00:34]} Bxc4 {[%emt 0:00:21]} 35. Nxc4 {[%emt 0:01:05]} Rxc4 {[%emt 0:00:05]} 36. fxe5 {[%emt 0:00:08]} Kf8 {[%emt 0:00:10]} 37. g5 {[%emt 0:00:41]} h5 {[%emt 0:00:32]} 38. Bb2 {[%emt 0:02:52]} Ke7 {[%emt 0:03:46]} 39. Ra3 {[%emt 0:01:16]} Rc6 {[%emt 0:04:01]} 40. Ra5 {[%emt 0:01:27]} Ke6 {[%emt 0:00:34]} 41. Kd2 {[%emt 0:30:44]} Nb6 {[%emt 0:30:57]} 0-1

[Event "10th LCC FIDE Open 2018"]
[Site "London"]
[Date "2018.12.15"]
[Round "8"]
[White "Beckett, Chris J"]
[Black "Lewtak, Damian"]
[Result "0-1"]
[ECO "A42"]
[WhiteElo "2165"]
[BlackElo "2393"]
[Annotator "NA"]
[PlyCount "70"]
[EventDate "2018.12.09"]
[EventType "swiss"]
[EventCountry "ENG"]
[SourceTitle "playchess.com"]
[Source "ChessBase"]
[SourceQuality "1"]
[TimeControl "40/5400+30:1800+30"]

1. d4 {[%emt 0:00:23]} g6 {[%emt 0:00:00]} 2. c4 {[%emt 0:00:18]} Bg7 {[%emt 0:00:00]} 3. Nc3 {[%emt 0:00:45]} d6 {[%emt 0:00:00]} 4. e4 {[%emt 0:05:25]} e5 {[%emt 0:00:00]} 5. Nf3 {[%emt 0:00:23]} Bg4 {[%emt 0:04:50]} 6. d5 {[%emt 0:03:16]} a5 {[%emt 0:05:25]} 7. Bd3 {[%emt 0:03:38]} Na6 {[%emt 0:00:46]} 8. O-O {[%emt 0:01:33]} Ne7 {[%emt 0:03:42]} 9. h3 {[%emt 0:18:12]} Bd7 {[%emt 0:00:12]} 10. a3 {[%emt 0:08:24]} O-O {[%emt 0:09:39]} 11. Rb1 {[%emt 0:01:28]} f5 {[%emt 0:07:19]} 12. b4 {[%emt 0:04:26]} f4 {[%emt 0:01:37]} 13. Ne1 {[%emt 0:00:51]} g5 {[%emt 0:02:02]} 14. Be2 {[%emt 0:01:03]} Kh8 {[%emt 0:08:31]} 15. Nd3 {[%emt 0:00:56]} Ng8 {[%emt 0:04:28]} 16. Bd2 {[%emt 0:02:48]} axb4 {[%emt 0:01:15]} 17. axb4 {[%emt 0:00:09]} Nf6 {[%emt 0:00:40]} 18. Be1 {[%emt 0:01:49]} Qe8 {[%emt 0:00:43]} 19. f3 {[%emt 0:03:34]} b6 {[%emt 0:05:02]} 20. Ra1 {[%emt 0:15:46]} Qg6 {[%emt 0:02:08]} 21. Ra3 {[%emt 0:02:31]} g4 {[%emt 0:00:08]} 22. hxg4 {[%emt 0:01:11]} h5 {[%emt 0:00:15]} 23. Qa1 {[%emt 0:04:16]} hxg4 {[%emt 0:01:07]} 24. fxg4 {[%emt 0:00:30]} Nxe4 {[%emt 0:07:45]} 25. Rxa6 {[%emt 0:02:19]} Rxa6 {[%emt 0:00:07]} 26. Qxa6 {[%emt 0:00:04]} Ng5 {[%emt 0:00:04]} 27. Qa3 {[%emt 0:07:41]} Bf6 {[%emt 0:06:33]} 28. Nf2 {[%emt 0:00:27]} e4 {[%emt 0:01:27]} 29. Ncxe4 {[%emt 0:00:24]} Nxe4 {[%emt 0:00:24]} 30. Bd3 {[%emt 0:00:18]} Bd4 {[%emt 0:01:09]} 31. Bc3 {[%emt 0:00:28]} Bxc3 {[%emt 0:00:19]} 32. Bxe4 {[%emt 0:03:24]} Qg7 {[%emt 0:00:08]} 33. Rc1 {[%emt 0:01:11]} Bd4 {[%emt 0:00:07]} 34. Qh3+ {[%emt 0:00:22]} Kg8 {[%emt 0:00:06]} 35. Bf3 {[%emt 0:02:31]} Bxf2+ {[%emt 0:00:50]} 0-1

[Event "10th LCC FIDE Open 2018"]
[Site "London"]
[Date "2018.12.15"]
[Round "8"]
[White "Czopor, Maciej"]
[Black "Barrish, Daniel"]
[Result "1-0"]
[ECO "B41"]
[WhiteElo "2164"]
[BlackElo "2252"]
[Annotator "NA"]
[PlyCount "63"]
[EventDate "2018.12.09"]
[EventType "swiss"]
[EventCountry "ENG"]
[SourceTitle "playchess.com"]
[Source "ChessBase"]
[SourceQuality "1"]
[TimeControl "40/5400+30:1800+30"]

1. e4 {[%emt 0:00:00]} c5 {[%emt 0:08:04]} 2. Nf3 {[%emt 0:00:00]} e6 {[%emt 0:00:06]} 3. d4 {[%emt 0:00:00]} cxd4 {[%emt 0:00:04]} 4. Nxd4 {[%emt 0:00:00]} a6 {[%emt 0:00:49]} 5. c4 {[%emt 0:00:07]} Nf6 {[%emt 0:00:14]} 6. Nc3 {[%emt 0:00:08]} Qc7 {[%emt 0:00:21]} 7. Be2 {[%emt 0:00:55]} Bb4 {[%emt 0:01:16]} 8. Nc2 {[%emt 0:00:56]} Bxc3+ {[%emt 0:06:50]} 9. bxc3 {[%emt 0:00:09]} Nxe4 {[%emt 0:04:58]} 10. Qd4 {[%emt 0:00:08]} Nf6 {[%emt 0:00:54]} 11. Bf4 {[%emt 0:00:08]} Qa5 {[%emt 0:02:10]} 12. Bd6 {[%emt 0:03:26]} Nc6 {[%emt 0:03:02]} 13. Qd3 {[%emt 0:13:43]} Qg5 {[%emt 0:09:54]} 14. O-O {[%emt 0:06:21]} Qg6 {[%emt 0:00:44]} 15. Qd1 {[%emt 0:06:35]} Ng8 {[%emt 0:06:21]} 16. Bf3 {[%emt 0:07:22]} Nge7 {[%emt 0:01:25]} 17. Ne3 {[%emt 0:02:28]} Nf5 {[%emt 0:07:25]} 18. Nxf5 {[%emt 0:02:10]} Qxf5 {[%emt 0:00:13]} 19. Re1 {[%emt 0:11:02]} f6 {[%emt 0:02:43]} 20. Re3 {[%emt 0:04:35]} Kf7 {[%emt 0:03:02]} 21. c5 {[%emt 0:01:21]} g6 {[%emt 0:03:37]} 22. h4 {[%emt 0:01:55]} h5 {[%emt 0:08:38]} 23. c4 {[%emt 0:21:43]} e5 {[%emt 0:01:02]} 24. Be4 {[%emt 0:05:01]} Qg4 {[%emt 0:01:39]} 25. Qd5+ {[%emt 0:00:35]} Qe6 {[%emt 0:01:01]} 26. Qd3 {[%emt 0:00:30]} Ne7 {[%emt 0:00:56]} 27. Bxe7 {[%emt 0:01:50]} Kxe7 {[%emt 0:00:26]} 28. Rb1 {[%emt 0:02:00]} d6 {[%emt 0:04:21]} 29. Rb6 {[%emt 0:00:46]} Rd8 {[%emt 0:00:33]} 30. cxd6+ {[%emt 0:00:58]} Rxd6 {[%emt 0:01:11]} 31. Qa3 {[%emt 0:00:11]} Bd7 {[%emt 0:00:43]} 32. Bd5 {[%emt 0:00:21]} 1-0

[Event "10th LCC FIDE Open 2018"]
[Site "London"]
[Date "2018.12.15"]
[Round "8"]
[White "Georgescu, Lena"]
[Black "Signorelli, Gaetano"]
[Result "1-0"]
[ECO "B01"]
[WhiteElo "2162"]
[BlackElo "2222"]
[Annotator "NA"]
[PlyCount "89"]
[EventDate "2018.12.09"]
[EventType "swiss"]
[EventCountry "ENG"]
[SourceTitle "playchess.com"]
[Source "ChessBase"]
[SourceQuality "1"]
[TimeControl "40/5400+30:1800+30"]

1. e4 {[%emt 0:00:00]} d5 {[%emt 0:00:00]} 2. exd5 {[%emt 0:00:00]} Nf6 {[%emt 0:00:00]} 3. d4 {[%emt 0:00:11]} Bg4 {[%emt 0:00:00]} 4. Bb5+ {[%emt 0:00:41]} Nbd7 {[%emt 0:00:29]} 5. Be2 {[%emt 0:00:04]} Bxe2 {[%emt 0:00:54]} 6. Qxe2 {[%emt 0:00:14]} Nxd5 {[%emt 0:00:29]} 7. Nf3 {[%emt 0:00:09]} g6 {[%emt 0:01:03]} 8. O-O {[%emt 0:00:59]} Bg7 {[%emt 0:00:22]} 9. c4 {[%emt 0:01:59]} N5f6 {[%emt 0:00:54]} 10. Nc3 {[%emt 0:07:47]} O-O {[%emt 0:01:11]} 11. Bg5 {[%emt 0:02:19]} Re8 {[%emt 0:05:37]} 12. Rad1 {[%emt 0:00:50]} c6 {[%emt 0:03:36]} 13. Rfe1 {[%emt 0:02:07]} h6 {[%emt 0:04:34]} 14. Bh4 {[%emt 0:06:32]} Qa5 {[%emt 0:02:42]} 15. Ne5 {[%emt 0:09:48]} e6 {[%emt 0:07:04]} 16. a3 {[%emt 0:04:32]} c5 {[%emt 0:06:35]} 17. Nxd7 {[%emt 0:14:11]} Nxd7 {[%emt 0:00:07]} 18. dxc5 {[%emt 0:00:27]} Bxc3 {[%emt 0:06:35]} 19. bxc3 {[%emt 0:00:11]} Nxc5 {[%emt 0:00:13]} 20. Bf6 {[%emt 0:00:58]} Kh7 {[%emt 0:08:10]} 21. Qd2 {[%emt 0:22:53]} Rac8 {[%emt 0:09:10]} 22. Qf4 {[%emt 0:05:42]} e5 {[%emt 0:03:31]} 23. Bxe5 {[%emt 0:02:20]} f5 {[%emt 0:01:01]} 24. h4 {[%emt 0:03:31]} Rf8 {[%emt 0:02:14]} 25. Rd6 {[%emt 0:02:06]} Rce8 {[%emt 0:07:05]} 26. Red1 {[%emt 0:03:47]} Rf7 {[%emt 0:01:31]} 27. R1d5 {[%emt 0:05:12]} Qxa3 {[%emt 0:04:55]} 28. h5 {[%emt 0:00:44]} g5 {[%emt 0:01:10]} 29. Qd4 {[%emt 0:00:41]} Ne6 {[%emt 0:03:54]} 30. Qd2 {[%emt 0:02:08]} Ng7 {[%emt 0:15:50]} 31. Qd4 {[%emt 0:01:24]} Ne6 {[%emt 0:00:49]} 32. Qd3 {[%emt 0:00:37]} Qc1+ {[%emt 0:00:43]} 33. Qd1 {[%emt 0:00:49]} Qxd1+ {[%emt 0:00:49]} 34. Rxd1 {[%emt 0:00:00]} a6 {[%emt 0:02:36]} 35. Rb6 {[%emt 0:00:29]} Rd8 {[%emt 0:00:43]} 36. Rd5 {[%emt 0:00:26]} Rxd5 {[%emt 0:00:42]} 37. cxd5 {[%emt 0:00:02]} Ng7 {[%emt 0:00:32]} 38. c4 {[%emt 0:01:05]} Nxh5 {[%emt 0:00:33]} 39. c5 {[%emt 0:00:10]} Ng7 {[%emt 0:00:30]} 40. c6 {[%emt 0:00:34]} bxc6 {[%emt 0:00:23]} 41. dxc6 {[%emt 0:03:58]} Ne6 {[%emt 0:01:25]} 42. Rxa6 {[%emt 0:03:40]} Re7 {[%emt 0:06:45]} 43. Rb6 {[%emt 0:01:47]} Nc5 {[%emt 0:03:37]} 44. c7 {[%emt 0:03:11]} Re8 {[%emt 0:00:07]} 45. Rb8 {[%emt 0:00:28]} 1-0

[Event "10th LCC FIDE Open 2018"]
[Site "London"]
[Date "2018.12.15"]
[Round "8"]
[White "Woong, Zhi Wei William"]
[Black "Hill, Alistair"]
[Result "1-0"]
[ECO "B31"]
[WhiteElo "2146"]
[BlackElo "2219"]
[Annotator "NA"]
[PlyCount "105"]
[EventDate "2018.12.09"]
[EventType "swiss"]
[EventCountry "ENG"]
[SourceTitle "playchess.com"]
[Source "ChessBase"]
[SourceQuality "1"]
[TimeControl "40/5400+30:1800+30"]

1. e4 {[%emt 0:00:23]} c5 {[%emt 0:00:00]} 2. Nf3 {[%emt 0:00:50]} Nc6 {[%emt 0:00:00]} 3. Bb5 {[%emt 0:00:11]} g6 {[%emt 0:00:00]} 4. O-O {[%emt 0:02:29]} Bg7 {[%emt 0:00:00]} 5. c3 {[%emt 0:02:04]} Nf6 {[%emt 0:00:07]} 6. Re1 {[%emt 0:02:28]} O-O {[%emt 0:00:33]} 7. d4 {[%emt 0:03:03]} d5 {[%emt 0:00:25]} 8. e5 {[%emt 0:05:40]} Ne4 {[%emt 0:00:47]} 9. Nbd2 {[%emt 0:01:20]} cxd4 {[%emt 0:00:20]} 10. cxd4 {[%emt 0:01:08]} Qb6 {[%emt 0:00:06]} 11. Bxc6 {[%emt 0:09:47]} Qxc6 {[%emt 0:00:44]} 12. Qe2 {[%emt 0:04:50]} Nxd2 {[%emt 0:29:34]} 13. Bxd2 {[%emt 0:03:57]} Qb6 {[%emt 0:00:50]} 14. Bg5 {[%emt 0:07:31]} Re8 {[%emt 0:07:14]} 15. b3 {[%emt 0:08:31]} h6 {[%emt 0:03:03]} 16. Be3 {[%emt 0:01:48]} Bf5 {[%emt 0:11:22]} 17. Rec1 {[%emt 0:07:54]} Rac8 {[%emt 0:00:54]} 18. Qd2 {[%emt 0:05:05]} g5 {[%emt 0:06:24]} 19. h4 {[%emt 0:03:33]} g4 {[%emt 0:00:10]} 20. Nh2 {[%emt 0:00:49]} Rxc1+ {[%emt 0:16:56]} 21. Rxc1 {[%emt 0:00:19]} Rc8 {[%emt 0:00:01]} 22. Nf1 {[%emt 0:02:15]} Rxc1 {[%emt 0:08:49]} 23. Qxc1 {[%emt 0:00:07]} Qc6 {[%emt 0:00:02]} 24. Qa3 {[%emt 0:05:45]} e6 {[%emt 0:07:03]} 25. Qxa7 {[%emt 0:00:22]} Qc8 {[%emt 0:01:26]} 26. Ng3 {[%emt 0:04:23]} Bg6 {[%emt 0:00:07]} 27. Qa5 {[%emt 0:02:54]} Kh7 {[%emt 0:01:35]} 28. Qd2 {[%emt 0:03:59]} Bf8 {[%emt 0:00:32]} 29. h5 {[%emt 0:01:59]} Bb1 {[%emt 0:00:42]} 30. Qe2 {[%emt 0:02:29]} Qc7 {[%emt 0:03:18]} 31. Qb2 {[%emt 0:04:24]} Bd3 {[%emt 0:00:50]} 32. Nf1 {[%emt 0:00:53]} Qa5 {[%emt 0:00:50]} 33. Bd2 {[%emt 0:02:03]} Qa3 {[%emt 0:01:09]} 34. Bc1 {[%emt 0:01:12]} Qa6 {[%emt 0:00:17]} 35. Ne3 {[%emt 0:00:25]} Bf5 {[%emt 0:00:48]} 36. Nxf5 {[%emt 0:00:14]} exf5 {[%emt 0:00:01]} 37. Qc2 {[%emt 0:00:13]} Qe6 {[%emt 0:00:35]} 38. a4 {[%emt 0:00:36]} Be7 {[%emt 0:00:33]} 39. Bd2 {[%emt 0:00:31]} Bg5 {[%emt 0:00:44]} 40. Bxg5 {[%emt 0:00:23]} hxg5 {[%emt 0:00:02]} 41. b4 {[%emt 0:30:40]} Kh6 {[%emt 0:30:43]} 42. b5 {[%emt 0:00:00]} Qb6 {[%emt 0:00:00]} 43. Qc5 {[%emt 0:00:00]} Qa5 {[%emt 0:00:00]} 44. Qf8+ {[%emt 0:00:00]} Kxh5 {[%emt 0:00:00]} 45. Qxf7+ {[%emt 0:00:00]} Kh6 {[%emt 0:00:00]} 46. Qf6+ {[%emt 0:00:00]} Kh5 {[%emt 0:00:00]} 47. Qxf5 {[%emt 0:00:00]} g3 {[%emt 0:00:00]} 48. Qh7+ {[%emt 0:00:00]} Kg4 {[%emt 0:00:00]} 49. Qh3+ {[%emt 0:00:00]} Kf4 {[%emt 0:00:00]} 50. Qxg3+ {[%emt 0:00:00]} Ke4 {[%emt 0:00:00]} 51. Qe3+ {[%emt 0:00:00]} Kf5 {[%emt 0:00:00]} 52. e6 {[%emt 0:00:00]} Qxa4 {[%emt 0:00:00]} 53. e7 {[%emt 0:00:00]} 1-0

[Event "10th LCC FIDE Open 2018"]
[Site "London"]
[Date "2018.12.15"]
[Round "8"]
[White "Eche, Sylvain"]
[Black "Lacasa Diaz, Jose Antonio"]
[Result "0-1"]
[ECO "B13"]
[WhiteElo "2136"]
[BlackElo "2389"]
[Annotator "NA"]
[PlyCount "86"]
[EventDate "2018.12.09"]
[EventType "swiss"]
[EventCountry "ENG"]
[SourceTitle "playchess.com"]
[Source "ChessBase"]
[SourceQuality "1"]
[TimeControl "40/5400+30:1800+30"]

1. e4 {[%emt 1:09:34]} c6 {[%emt 0:04:49]} 2. d4 {[%emt 0:00:00]} d5 {[%emt 0:00:09]} 3. exd5 {[%emt 0:00:00]} cxd5 {[%emt 0:00:07]} 4. Bd3 {[%emt 0:00:00]} Nc6 {[%emt 0:00:15]} 5. c3 {[%emt 0:00:00]} Nf6 {[%emt 0:00:16]} 6. Bf4 {[%emt 0:00:00]} Bg4 {[%emt 0:00:27]} 7. Qb3 {[%emt 0:00:00]} Qd7 {[%emt 0:00:13]} 8. Nd2 {[%emt 0:00:00]} e6 {[%emt 0:00:13]} 9. Ngf3 {[%emt 0:00:00]} Bd6 {[%emt 0:00:15]} 10. Ne5 {[%emt 0:00:00]} Qc7 {[%emt 0:01:30]} 11. Nxg4 {[%emt 0:00:00]} Bxf4 {[%emt 0:00:42]} 12. Nxf6+ {[%emt 0:00:00]} gxf6 {[%emt 0:00:07]} 13. Qc2 {[%emt 0:00:00]} h5 {[%emt 0:09:20]} 14. O-O-O {[%emt 0:00:00]} O-O-O {[%emt 0:01:20]} 15. Kb1 {[%emt 0:00:00]} Rdg8 {[%emt 0:10:40]} 16. g3 {[%emt 0:00:00]} Bxd2 {[%emt 0:00:57]} 17. Qxd2 {[%emt 0:00:00]} h4 {[%emt 0:00:50]} 18. Qe3 {[%emt 0:00:00]} f5 {[%emt 0:01:58]} 19. Bb5 {[%emt 0:00:00]} Ne7 {[%emt 0:02:53]} 20. Rc1 {[%emt 0:00:00]} Kb8 {[%emt 0:00:25]} 21. f4 {[%emt 0:00:00]} Nc8 {[%emt 0:14:46]} 22. Bd3 {[%emt 0:00:00]} Nd6 {[%emt 0:01:39]} 23. Rcg1 {[%emt 0:00:00]} Qe7 {[%emt 0:05:34]} 24. a3 {[%emt 0:05:28]} a6 {[%emt 0:05:18]} 25. Ka2 {[%emt 0:00:18]} Rg6 {[%emt 0:06:41]} 26. Bxf5 {[%emt 0:05:36]} Rgh6 {[%emt 0:05:00]} 27. g4 {[%emt 0:03:06]} Nxf5 {[%emt 0:13:43]} 28. gxf5 {[%emt 0:00:09]} Ka7 {[%emt 0:00:05]} 29. Qe5 {[%emt 0:07:00]} Rf6 {[%emt 0:03:30]} 30. Re1 {[%emt 0:02:22]} Rh5 {[%emt 0:00:57]} 31. Qxd5 {[%emt 0:02:04]} Rhxf5 {[%emt 0:00:07]} 32. Qc4 {[%emt 0:01:21]} Rxf4 {[%emt 0:00:11]} 33. Rhg1 {[%emt 0:00:31]} Rf2 {[%emt 0:02:05]} 34. d5 {[%emt 0:04:34]} R6f4 {[%emt 0:00:53]} 35. Qc8 {[%emt 0:02:00]} Ra4 {[%emt 0:02:19]} 36. Kb3 {[%emt 0:01:52]} Ra5 {[%emt 0:02:20]} 37. c4 {[%emt 0:00:49]} Qf6 {[%emt 0:01:38]} 38. Rb1 {[%emt 0:00:55]} exd5 {[%emt 0:03:23]} 39. c5 {[%emt 0:00:49]} Rb5+ {[%emt 0:00:15]} 40. Ka4 {[%emt 0:00:13]} Qd4+ {[%emt 0:01:34]} 41. b4 {[%emt 0:01:54]} Qc4 {[%emt 0:03:39]} 42. Qc7 {[%emt 0:02:59]} Rf3 {[%emt 0:05:04]} 43. Rb2 {[%emt 0:04:07]} Qc3 {[%emt 0:00:24]} 0-1